{"text_format":"1","workbook":"xlsx","n_sheets":15,"sheets":["Form2","Dropdown_List","Message","BoxTitle","Variables","Supplementary(Box27)","Version","Consideration(Box17)","level1(Box17)","level2(Box17)","level3(Box17)","Capacity(Box17_20)","Derivatives(Box21)","Status(Box24)","Relationship(Box26)"],"not_rendered":{"charts":0,"images":15,"macros":1,"external_links":0,"defined_names":274,"comments":0,"pivot_tables":0},"unopened":[],"bounds":{"document_bytes":16777216,"sheet_cells":100000,"rows_first":2000,"rows_last":500,"rows_between":2000,"halvings":0,"cell_chars":16384,"cell_head_chars":4096},"cells_cut":0,"cells_raw":0,"read":"whole","date_system":"1900"}

{"sheet":"Form2","index":0,"n_rows":132,"n_cols":21,"rows_kept":132,"cut":false,"hidden":false,"merged":[[120,1,120,3],[120,4,120,14],[120,16,120,18],[120,19,120,20],[107,4,107,14],[107,15,107,20],[108,1,108,3],[108,4,108,14],[108,15,108,20],[107,1,107,3],[109,1,109,3],[109,4,109,14],[109,15,109,20],[119,1,119,3],[119,4,119,14],[119,16,119,18],[118,1,118,3],[118,4,118,14],[118,16,118,18],[117,4,117,14],[110,15,110,20],[93,4,93,10],[93,18,93,20],[85,4,85,14],[86,1,86,3],[86,4,86,14],[86,15,86,17],[86,18,86,20],[85,15,85,17],[85,1,85,3],[85,18,85,20],[59,8,59,9],[72,1,72,3],[62,2,62,5],[62,6,62,7],[62,8,62,9],[63,8,63,9],[81,15,81,20],[84,15,84,17],[84,18,84,20],[60,8,60,9],[59,6,59,7],[84,1,84,3],[84,4,84,14],[59,2,59,5],[60,2,60,5],[59,17,59,18],[59,19,59,20],[60,19,60,20],[60,17,60,18],[59,13,59,16],[73,1,73,3],[73,4,73,7],[73,8,73,10],[73,11,73,12],[57,1,57,9],[72,13,72,14],[72,15,72,17],[72,18,72,20],[72,4,72,7],[72,8,72,10],[72,11,72,12],[58,12,58,16],[60,13,60,16],[61,2,61,5],[61,6,61,7],[61,8,61,9],[61,13,61,16],[61,17,61,18],[61,19,61,20],[58,6,58,9],[58,1,58,5],[58,17,58,20],[62,13,62,16],[62,17,62,18],[62,19,62,20],[63,13,63,16],[63,17,63,18],[63,19,63,20],[73,13,73,14],[73,15,73,17],[63,2,63,5],[63,6,63,7],[69,4,71,7],[70,15,71,17],[69,15,69,20],[70,18,71,20],[69,11,71,12],[73,18,73,20],[69,13,71,14],[131,19,132,20],[81,4,82,14],[90,1,90,20],[105,4,105,14],[104,1,104,20],[105,1,105,3],[105,15,105,20],[83,1,83,3],[129,10,129,15],[125,1,127,20],[83,18,83,20],[82,15,82,17],[82,18,82,20],[81,1,82,3],[83,4,83,14],[83,15,83,17],[91,1,92,3],[119,19,119,20],[118,19,118,20],[115,19,116,20],[117,19,117,20],[116,16,116,18],[92,18,92,20],[106,4,106,14],[2,1,2,2],[2,6,2,15],[25,1,27,10],[10,15,10,17],[43,11,46,12],[10,1,10,3],[15,1,15,20],[10,7,10,9],[16,1,16,10],[10,4,10,6],[10,18,10,20],[17,1,17,10],[17,11,17,20],[11,1,11,3],[11,12,11,14],[11,15,11,17],[5,1,5,20],[21,1,23,10],[20,11,20,20],[21,11,21,20],[11,4,11,6],[8,12,9,20],[10,12,10,14],[11,18,11,20],[4,1,4,20],[6,1,6,20],[41,19,42,19],[43,9,46,10],[43,8,44,8],[39,5,40,5],[29,11,29,20],[29,1,31,10],[30,11,30,20],[38,8,38,10],[37,17,38,18],[37,19,38,20],[39,1,42,1],[39,16,42,16],[39,13,42,13],[31,11,31,20],[39,19,40,19],[39,2,40,2],[13,5,13,20],[14,1,14,20],[23,11,23,15],[23,16,23,20],[22,11,22,15],[22,16,22,20],[11,7,11,9],[13,1,13,4],[50,1,50,3],[24,11,24,20],[25,11,25,20],[26,16,26,20],[26,11,26,15],[35,1,35,20],[36,14,36,16],[27,16,27,20],[27,11,27,15],[28,11,28,20],[36,11,38,12],[45,2,46,2],[43,1,46,1],[43,2,44,2],[43,3,46,4],[45,5,46,5],[36,17,36,20],[52,18,52,20],[52,7,52,9],[51,15,51,17],[51,18,51,20],[52,15,52,17],[50,18,50,20],[50,15,50,17],[51,1,51,3],[50,4,50,6],[50,7,50,9],[52,12,52,14],[80,1,80,20],[115,15,115,18],[115,1,116,3],[117,1,117,3],[115,4,116,14],[117,16,117,18],[39,9,42,10],[39,6,42,7],[39,17,42,18],[39,11,42,12],[39,14,42,15],[39,8,40,8],[39,20,42,20],[51,4,51,6],[52,1,52,3],[57,12,57,20],[48,12,48,20],[49,4,49,6],[52,4,52,6],[49,18,49,20],[49,12,49,14],[49,7,49,9],[49,15,49,17],[110,1,110,14],[96,15,96,17],[41,2,42,2],[39,3,42,4],[41,8,42,8],[37,16,38,16],[43,5,44,5],[43,6,46,7],[37,14,38,15],[45,8,46,8],[36,13,38,13],[36,5,37,10],[51,7,51,9],[51,12,51,14],[50,12,50,14],[49,1,49,3],[48,1,48,9],[41,5,42,5],[36,2,38,4],[36,1,38,1],[38,5,38,7],[68,1,68,20],[69,1,71,3],[69,8,71,10],[60,6,60,7],[106,15,106,20],[106,1,106,3],[96,18,96,20],[91,15,91,20],[91,4,92,10],[91,11,91,14],[93,12,93,14],[93,15,93,17],[92,15,92,17],[94,12,94,14],[95,1,95,3],[95,4,95,10],[95,12,95,14],[95,15,95,17],[95,18,95,20],[93,1,93,3],[94,15,94,17],[94,18,94,20],[92,12,92,14],[94,1,94,3],[94,4,94,10],[96,1,96,3],[96,4,96,10],[96,12,96,14],[74,1,74,3],[74,4,74,7],[74,8,74,10],[74,11,74,12],[74,13,74,14],[74,15,74,17],[74,18,74,20],[75,1,75,3],[75,4,75,7],[75,8,75,10],[75,11,75,12],[75,13,75,14],[75,15,75,17],[75,18,75,20]]}
[]
[]
[null,"表格2",null,null,null,null,"法团大股东通知"]
[]
[null,"依据《证券及期货条例》（第571章）第XV部第324条作出通知"]
[]
[]
[]
[null,"1. 有关事件的日期",null,null,null,null,null,null,null,null,null,null,"2. 大股东知悉有关事件／股份权益的日期（如在有关事件的日期之后）"]
[]
[null,"",null,null,"",null,null,"",null,null,null,null,"",null,null,"",null,null,""]
[null,"（日）",null,null,"（月）",null,null,"（年）",null,null,null,null,"（日）",null,null,"（月）",null,null,"（年）"]
[]
[null,"3. 股份代号",null,null,null,""]
[null,"4. 上市法团的名称"]
[null,""]
[null,"5. 股份类别",null,null,null,null,null,null,null,null,null,""]
[null,""]
[]
[]
[null,"7. 大股东的名称",null,null,null,null,null,null,null,null,null,"10. 商业登记号码"]
[null,"",null,null,null,null,null,null,null,null,null,""]
[null,null,null,null,null,null,null,null,null,null,null,"11. 注册成立地点",null,null,null,null,"注册证明书号码"]
[null,null,null,null,null,null,null,null,null,null,null,"",null,null,null,null,""]
[null,"8. 注册办事处",null,null,"",null,null,null,null,null,null,"12. 联络人"]
[null,"",null,null,null,null,null,null,null,null,null,""]
[null,null,null,null,null,null,null,null,null,null,null,"13. 日间联络电话号码",null,null,null,null,"14. 电邮地址"]
[null,null,null,null,null,null,null,null,null,null,null,""]
[null,"9. 香港主要营业地点",null,null,null,null,null,"",null,null,null,"15. 在哪一家交易所上市"]
[null,"",null,null,null,null,null,null,null,null,null,""]
[null,null,null,null,null,null,null,null,null,null,null,"16. 上市母公司的名称及母公司在哪一家交易所上市"]
[null,null,null,null,null,null,null,null,null,null,null,""]
[]
[]
[]
[null,"17. 有关事件的详情"]
[null,null,"有关事件的简述",null,null,"以前／现时持有股份的身分",null,null,null,null,null,"买／卖或涉及的股份数目",null,"交易的货币","场内",null,null,"场外"]
[null,null,null,null,null,null,null,null,null,null,null,null,null,null,"最高价（每股）",null,"平均价（每股）","平均代价（每股）",null,"代价的性质"]
[null,null,null,null,null,"有关事件之前",null,null,"有关事件之后"]
[null,"好仓","填入代号或双击以下方格","",null,"填入代号或双击以下方格","",null,"填入代号或双击以下方格","",null,null,null,"","",null,"","",null,"填入代号或双击以下方格",""]
[]
[null,null,"",null,null,"",null,null,"",null,null,null,null,null,null,null,null,null,null,""]
[]
[null,"淡仓","填入代号或双击以下方格","",null,"填入代号或双击以下方格","",null,"填入代号或双击以下方格",""]
[]
[null,null,"",null,null,"",null,null,""]
[]
[]
[null,"18. 紧接在有关事件之前的股份总数",null,null,null,null,null,null,null,null,null,null,"19. 紧接在有关事件之后的股份总数"]
[null,null,null,null,"股份总数",null,null,"百分率数字(%)",null,null,null,null,null,null,null,"股份总数",null,null,"百分率数字(%)"]
[null,"好仓",null,null,null,null,null,"",null,null,null,null,"好仓",null,null,null,null,null,""]
[null,"淡仓",null,null,null,null,null,"",null,null,null,null,"淡仓",null,null,null,null,null,""]
[null,"可供借出的股份",null,null,null,null,null,"",null,null,null,null,"可供借出的股份",null,null,null,null,null,""]
[]
[]
[]
[]
[null,"20. 以何种身分持有方格19所披露的权益",null,null,null,null,null,null,null,null,null,null,"21. 有关衍生权益的进一步资料"]
[null,"切合身分的代号",null,null,null,null,"股份数目",null,null,null,null,null,"衍生工具的代号",null,null,null,null,"股份数目"]
[null,"填入代号或双击以下方格","描述",null,null,null,"好仓",null,"淡仓",null,null,null,"填入代号或双击以下方格","描述",null,null,null,"好仓",null,"淡仓"]
[null,"","",null,null,null,null,null,null,null,null,null,"",""]
[null,"","","","","",null,null,null,null,null,null,"","","","",""]
[null,"","",null,null,null,null,null,null,null,null,null,"",""]
[null,"","",null,null,null,null,null,null,null,null,null,"",""]
[null,"","","","","","","","","",null,null,"","","","","","","","",""]
[]
[]
[]
[null,"22. 有关由大股东所控制的法团的权益的进一步资料"]
[null,"受控法团的名称",null,null,"地址及注册成立地点",null,null,null,"控权人士的姓名或名称",null,null,"控制百分率%",null,"直接权益(Y/N)",null,"股份数目"]
[null,null,null,null,null,null,null,null,null,null,null,null,null,null,null,"好仓",null,null,"淡仓"]
[]
[null,"",null,null,"",null,null,null,"",null,null,"",null,""]
[null,"",null,null,"",null,null,null,"",null,null,"",null,""]
[null,"",null,null,"",null,null,null,"",null,null,"",null,""]
[null,"",null,null,"",null,null,null,"",null,null,"",null,""]
[]
["","",null,null,null,null,null,null,null,null,null,null,null,null,null,null,null,"",null,""]
[]
[]
[null,"23. 有关由大股东与另一人共同持有的权益的进一步资料"]
[null,"联名股东的姓名或名称",null,null,"地址",null,null,null,null,null,null,null,null,null,null,"股份数目"]
[null,null,null,null,null,null,null,null,null,null,null,null,null,null,null,"好仓",null,null,"淡仓"]
[null,"",null,null,""]
[null,"",null,null,""]
[null,"",null,null,""]
[null,"",null,null,""]
[null,"","","","","","","","","","","","","","","","","","","",""]
[]
[]
[null,"24. 来自受托人、信托受益人或酌情信托成立人的进一步资料"]
[null,"信托的名称",null,null,"地址",null,null,null,null,null,null,"与信托有关的身分代号",null,null,null,"股份数目"]
[null,null,null,null,null,null,null,null,null,null,null,"填入代号或双击以下方格","描述",null,null,"好仓",null,null,"淡仓"]
[null,"",null,null,"",null,null,null,null,null,null,"",""]
[null,"",null,null,"",null,null,null,null,null,null,"","","",""]
[null,"",null,null,"",null,null,null,null,null,null,"",""]
[null,"",null,null,"",null,null,null,null,null,null,"","","",""]
[]
[null,null,null,null,null,null,null,null,null,null,null,""]
[null,null,null,null,null,null,null,null,null,null,null,""]
[null,null,null,null,null,null,null,null,null,null,null,""]
[null,null,null,null,null,null,null,null,null,null,null,""]
[]
[]
[null,"25. 来自第317条所指的协议的一方的进一步资料（关于所需的进一步资料，请参阅注释）"]
[null,"其他方的姓名或名称",null,null,"地址",null,null,null,null,null,null,null,null,null,null,"股份数目"]
[null,"",null,null,""]
[null,"",null,null,""]
[null,"",null,null,""]
[null,"",null,null,""]
[null,"根据第317及318条，大股东持有权益的股份总数"]
[]
[]
[]
[null,"26. 大股东或其董事惯于按照其指令行事的人士的详情"]
[null,"姓名",null,null,"地址",null,null,null,null,null,null,null,null,null,null,"关系代号",null,null,null,"百分率(%)"]
[null,null,null,null,null,null,null,null,null,null,null,null,null,null,null,"填入代号或双击以下方格","描述"]
[null,null,null,null,null,null,null,null,null,null,null,null,null,null,null,null,null,null,null,""]
[null,null,null,null,null,null,null,null,null,null,null,null,null,null,null,null,null,"","",""]
[null,null,null,null,null,null,null,null,null,null,null,null,null,null,null,null,null,null,null,""]
[null,null,null,null,null,null,null,null,null,null,null,null,null,null,null,null,null,"","",""]
[]
[]
[]
[null,"27. 补充资料"]
[null,""]
[]
[]
[]
["N","28.                  如本表格是过往呈交的表格的修订本，请勾选此方格",null,null,null,null,null,null,null,null,"[插入过住的表格的编号／序号]"]
[]
[null,null,null,null,null,null,null,null,null,null,null,null,null,null,"29. 夹附／上载第317条所指的一致行动人士文件的数目",null,null,null,null,""]

{"sheet":"Dropdown_List","index":1,"n_rows":32,"n_cols":13,"rows_kept":32,"cut":false,"hidden":true,"merged":[]}
[]
["普通股",1,null,"香港身份证","H",null,"子女","C",null,"Y","HKD",null,"[insert log/serial number of the previous form]"]
["H股",2,null,"护照","P",null,"配偶","S",null,"N","CNY",null,"[插入過住的表格的編號／序號]"]
["A股",3,null,"中国居民身份证","R",null,null,null,null,null,"USD",null,"[插入过住的表格的编号／序号]"]
["内资股",4,null,"其他","O",null,null,null,null,null,"AUD"]
["普通股及优先股 (股份合订单位)",5,null,null,null,null,null,null,null,null,"BND"]
["优先股",6,null,null,null,null,null,null,null,null,"CAD"]
["单位/单位信托",7,null,null,null,null,null,null,null,null,"CHF"]
["美国预托证券",8,null,null,null,null,null,null,null,null,"DKK"]
["香港预托证券",9,null,null,null,null,null,null,null,null,"EUR"]
["其他",99,null,null,null,null,null,null,null,null,"GBP"]
[null,null,null,null,null,null,null,null,null,null,"IDR"]
[null,null,null,null,null,null,null,null,null,null,"INR"]
[null,null,null,null,null,null,null,null,null,null,"JOD"]
[null,null,null,null,null,null,null,null,null,null,"JPY"]
[null,null,null,null,null,null,null,null,null,null,"KHR"]
[null,null,null,null,null,null,null,null,null,null,"KRW"]
[null,null,null,null,null,null,null,null,null,null,"MNT"]
[null,null,null,null,null,null,null,null,null,null,"MOP"]
[null,null,null,null,null,null,null,null,null,null,"MXN"]
[null,null,null,null,null,null,null,null,null,null,"MYR"]
[null,null,null,null,null,null,null,null,null,null,"NOK"]
[null,null,null,null,null,null,null,null,null,null,"NZD"]
[null,null,null,null,null,null,null,null,null,null,"PHP"]
[null,null,null,null,null,null,null,null,null,null,"PKR"]
[null,null,null,null,null,null,null,null,null,null,"RUR"]
[null,null,null,null,null,null,null,null,null,null,"SEK"]
[null,null,null,null,null,null,null,null,null,null,"SGD"]
[null,null,null,null,null,null,null,null,null,null,"THB"]
[null,null,null,null,null,null,null,null,null,null,"TWD"]
[null,null,null,null,null,null,null,null,null,null,"ZAR"]
[null,null,null,null,null,null,null,null,null,null,"其他"]

{"sheet":"Message","index":2,"n_rows":19,"n_cols":9,"rows_kept":19,"cut":false,"hidden":true,"merged":[]}
["Validation Checked. Please find below error for your handling (If any)","Description","Validation",null,"on","27 Apr 2017, 17:21:9",null,null,"2017-08-30T14:03:18"]
["方格1: ","此格没有输入。请填写此格"]
["方格3: ","此格没有输入。请填写此格"]
["方格4: ","此格没有输入。请填写此格"]
["方格5: ","此格没有输入。请填写此格"]
["方格6: ","此格没有输入。请填写此格"]
["方格7: ","此格没有输入。请填写此格"]
["方格8: ","此格没有输入。请填写此格"]
["方格9: ","此格没有输入。请填写此格"]
["方格11 - 注册成立地点 : ","此格没有输入。请填写此格"]
["方格11 - 注册证明书号码: ","此格没有输入。请填写此格"]
["方格12: ","此格没有输入。请填写此格"]
["方格13: ","此格没有输入。请填写此格"]
["方格14: ","此格没有输入。请填写此格"]
["方格17: ","请输入或从列表中选择好仓或淡仓或两者的有关事件代号"]
["方格18 - 好仓 - 股份总数 : ","此格没有输入。请填写此格"]
["方格18 - 好仓 - 百分率数字(%) : ","此格没有输入。请填写此格"]
["方格19 - 好仓 - 股份总数 : ","此格没有输入。请填写此格"]
["方格19 - 好仓 - 百分率数字(%) : ","此格没有输入。请填写此格"]

{"sheet":"BoxTitle","index":3,"n_rows":88,"n_cols":8,"rows_kept":88,"cut":false,"hidden":true,"merged":[]}
["strRow1","(第",{"$f":"\"Public \"& A1 & \" As String\"","v":"Public strRow1 As String"},1,{"$f":"A1&\"=.Range(\"\"B\" &D1 & \"\"\")\"","v":"strRow1=.Range(\"B1\")"}]
["strRow2","行)：","Public strRow2 As String",2,"strRow2=.Range(\"B2\")"]
["strBox1","方格1. 有关事件的日期 :",{"$f":"\"Public \"& A3 & \" As String\"","v":"Public strBox1 As String"},3,{"$f":"A3&\"=.Range(\"\"B\" &D3 & \"\"\")\"","v":"strBox1=.Range(\"B3\")"},"        strBox17_highest_price = .Range(\"B27\")",null,"strEventCode = .Range(\"B57\")"]
["strBox2","方格2. 大股东知悉有关事件／股份权益的日期（如在有关事件的日期之后） :",{"$f":"\"Public \"& A4 & \" As String\"","v":"Public strBox2 As String"},4,{"$f":"A4&\"=.Range(\"\"B\" &D4 & \"\"\")\"","v":"strBox2=.Range(\"B4\")"}]
["strBox3","方格3. 股份代号 :","Public strBox3 As String",5,"strBox3=.Range(\"B5\")"]
["strBox4","方格4. 上市法团的名称 :","Public strBox4 As String",6,"strBox4=.Range(\"B6\")"]
["strBox5","方格5. 股份类别 :","Public strBox5 As String",7,"strBox5=.Range(\"B7\")"]
["strBox6","方格6. 该类别的已发行股份的数目  :","Public strBox6 As String",8,"strBox6=.Range(\"B8\")"]
["strBox7","方格7. 大股东的名称 :","Public strBox7 As String",9,"strBox7=.Range(\"B9\")"]
["strBox8","方格8. 注册办事处 :","Public strBox8 As String",10,"strBox8=.Range(\"B10\")"]
["strBox9","方格9. 香港主要营业地点 :","Public strBox9 As String",11,"strBox9=.Range(\"B11\")"]
["strBox10","方格10. 商业登记号码:","Public strBox10 As String",12,"strBox10=.Range(\"B12\")"]
["strBox11_place","方格11. 注册成立地点 :","Public strBox11_place As String",13,"strBox11_place=.Range(\"B13\")"]
["strBox11_number","方格11. 注册证明书号码:","Public strBox11_number As String",14,"strBox11_number=.Range(\"B14\")"]
["strBox12","方格12. 联络人 :","Public strBox12 As String",15,"strBox12=.Range(\"B15\")"]
["strBox13","方格13. 日间联络电话号码 :","Public strBox13 As String",16,"strBox13=.Range(\"B16\")"]
["strBox14","方格14. 电邮地址 :","Public strBox14 As String",17,"strBox14=.Range(\"B17\")"]
["strBox15","方格15. 在哪一家交易所上市 :","Public strBox15 As String",18,"strBox15=.Range(\"B18\")"]
["strBox16","方格16. 上市母公司的名称及母公司在哪一家交易所上市 :","Public strBox16 As String",19,"strBox16=.Range(\"B19\")"]
["strBox17","方格17. :","Public strBox17 As String",20,"strBox17=.Range(\"B20\")"]
["strBox17_long_event_code","方格17. 有关事件的简述 (好仓) :","Public strBox17_long_event_code As String",21,"strBox17_long_event_code=.Range(\"B21\")"]
["strBox17_short_event_code","方格17. 有关事件的简述 (淡仓) :","Public strBox17_short_event_code As String",22,"strBox17_short_event_code=.Range(\"B22\")"]
["strBox17_long_before_code","方格17. 有关事件之前 (好仓) :","Public strBox17_long_before_code As String",23,"strBox17_long_before_code=.Range(\"B23\")"]
["strBox17_short_before_code","方格17. 有关事件之前 (淡仓) :","Public strBox17_short_before_code As String",24,"strBox17_short_before_code=.Range(\"B24\")"]
["strBox17_long_after_code","方格17. 有关事件之后 (好仓) :","Public strBox17_long_after_code As String",25,"strBox17_long_after_code=.Range(\"B25\")"]
["strBox17_short_after_code","方格17. 有关事件之后 (淡仓) :","Public strBox17_short_after_code As String",26,"strBox17_short_after_code=.Range(\"B26\")"]
["strBox17_long_no_share","方格17. 买／卖或涉及的股份数目 (好仓) :","Public strBox17_long_no_share As String",27,"strBox17_long_no_share=.Range(\"B27\")"]
["strBox17_short_no_share","方格17. 买／卖或涉及的股份数目 (淡仓) :","Public strBox17_short_no_share As String",28,"strBox17_short_no_share=.Range(\"B28\")"]
["strBox17_highest_price","方格17. 最高价（每股） :","Public strBox17_highest_price As String",29,"strBox17_highest_price=.Range(\"B29\")"]
["strBox17_average_price","方格17. 平均价（每股） :","Public strBox17_average_price As String",30,"strBox17_average_price=.Range(\"B30\")"]
["strBox17_average_consideration","方格17. 平均代价（每股） :","Public strBox17_average_consideration As String",31,"strBox17_average_consideration=.Range(\"B31\")"]
["strBox17_consideration_nature_code","方格17. 代价的性质 (好仓) :","Public strBox17_consideration_nature_code As String",32,"strBox17_consideration_nature_code=.Range(\"B32\")"]
["strBox17_long","方格17. (好仓) :","Public strBox17_long As String",33,"strBox17_long=.Range(\"B33\")"]
["strBox17_short","方格17. (淡仓) :","Public strBox17_short As String",34,"strBox17_short=.Range(\"B34\")"]
["strBox18","方格18. :","Public strBox18 As String",35,"strBox18=.Range(\"B35\")"]
["strBox18_long_shares","方格18. 股份总数 (好仓) :","Public strBox18_long_shares As String",36,"strBox18_long_shares=.Range(\"B36\")"]
["strBox18_long_percentage","方格18. 百分率数字(%) (好仓) :","Public strBox18_long_percentage As String",37,"strBox18_long_percentage=.Range(\"B37\")"]
["strBox18_short_shares","方格18. 股份总数 (淡仓) :","Public strBox18_short_shares As String",38,"strBox18_short_shares=.Range(\"B38\")"]
["strBox18_short_percentage","方格18. 百分率数字(%) (淡仓) :","Public strBox18_short_percentage As String",39,"strBox18_short_percentage=.Range(\"B39\")"]
["strBox18_lending_shares","方格18. 股份总数 (可供借出的股份) :","Public strBox18_lending_shares As String",40,"strBox18_lending_shares=.Range(\"B40\")"]
["strBox18_lending_percentage","方格18. 百分率数字(%) (可供借出的股份) :","Public strBox18_lending_percentage As String",41,"strBox18_lending_percentage=.Range(\"B41\")"]
["strBox19","方格19. :","Public strBox19 As String",42,"strBox19=.Range(\"B42\")"]
["strBox19_long_shares","方格19. 股份总数 (好仓) :","Public strBox19_long_shares As String",43,"strBox19_long_shares=.Range(\"B43\")"]
["strBox19_long_percentage","方格19. 百分率数字(%) (好仓) :","Public strBox19_long_percentage As String",44,"strBox19_long_percentage=.Range(\"B44\")"]
["strBox19_short_shares","方格19. 股份总数 (淡仓) :","Public strBox19_short_shares As String",45,"strBox19_short_shares=.Range(\"B45\")"]
["strBox19_short_percentage","方格19. 百分率数字(%) (淡仓) :","Public strBox19_short_percentage As String",46,"strBox19_short_percentage=.Range(\"B46\")"]
["strBox19_lending_shares","方格19. 股份总数 (可供借出的股份) :","Public strBox19_lending_shares As String",47,"strBox19_lending_shares=.Range(\"B47\")"]
["strBox19_lending_percentage","方格19. 百分率数字(%) (可供借出的股份) :","Public strBox19_lending_percentage As String",48,"strBox19_lending_percentage=.Range(\"B48\")"]
["strBox20","方格20.","Public strBox20 As String",49,"strBox20=.Range(\"B49\")"]
["strBox20_code","方格20. 切合身分的代号","Public strBox20_code As String",50,"strBox20_code=.Range(\"B50\")"]
["strBox20_long","方格20. 好仓","Public strBox20_long As String",51,"strBox20_long=.Range(\"B51\")"]
["strBox20_short","方格20. 淡仓","Public strBox20_short As String",52,"strBox20_short=.Range(\"B52\")"]
["strBox21","方格21.","Public strBox21 As String",53,"strBox21=.Range(\"B53\")"]
["strBox21_code","方格21. 衍生工具的代号","Public strBox21_code As String",54,"strBox21_code=.Range(\"B54\")"]
["strBox21_long","方格21. 好仓","Public strBox21_long As String",55,"strBox21_long=.Range(\"B55\")"]
["strBox21_short","方格21. 淡仓","Public strBox21_short As String",56,"strBox21_short=.Range(\"B56\")"]
["strBox22","方格22.","Public strBox22 As String",57,"strBox22=.Range(\"B57\")"]
["strBox22_corp","方格22. 受控法团的名称","Public strBox22_corp As String",58,"strBox22_corp=.Range(\"B58\")"]
["strBox22_address","方格22. 地址及注册成立地点","Public strBox22_address As String",59,"strBox22_address=.Range(\"B59\")"]
["strBox22_person","方格22. 控权人士的姓名或名称","Public strBox22_person As String",60,"strBox22_person=.Range(\"B60\")"]
["strBox22_control","方格22. 控制百分率%","Public strBox22_control As String",61,"strBox22_control=.Range(\"B61\")"]
["strBox22_interest","方格22. 直接权益(Y/N)","Public strBox22_interest As String",62,"strBox22_interest=.Range(\"B62\")"]
["strBox22_long","方格22. 好仓","Public strBox22_long As String",63,"strBox22_long=.Range(\"B63\")"]
["strBox22_short","方格22. 淡仓","Public strBox22_short As String",64,"strBox22_short=.Range(\"B64\")"]
["strBox23","方格23 .","Public strBox23 As String",65,"strBox23=.Range(\"B65\")"]
["strBox23_name","方格23. 联名股东的姓名或名称","Public strBox23_name As String",66,"strBox23_name=.Range(\"B66\")"]
["strBox23_address","方格23. 地址","Public strBox23_address As String",67,"strBox23_address=.Range(\"B67\")"]
["strBox23_long","方格23. 好仓",{"$f":"\"Public \"& A68 & \" As String\"","v":"Public strBox23_long As String"},68,{"$f":"A68&\"=.Range(\"\"B\" &D68 & \"\"\")\"","v":"strBox23_long=.Range(\"B68\")"}]
["strBox23_short","方格23. 淡仓","Public strBox23_short As String",69,"strBox23_short=.Range(\"B69\")"]
["strBox24","方格24.","Public strBox24 As String",70,"strBox24=.Range(\"B70\")"]
["strBox24_name","方格24. 信托的名称","Public strBox24_name As String",71,"strBox24_name=.Range(\"B71\")"]
["strBox24_address","方格24. 地址","Public strBox24_address As String",72,"strBox24_address=.Range(\"B72\")"]
["strBox24_code","方格24. 与信托有关的身分代号","Public strBox24_code As String",73,"strBox24_code=.Range(\"B73\")"]
["strBox24_long","方格24. 好仓","Public strBox24_long As String",74,"strBox24_long=.Range(\"B74\")"]
["strBox24_short","方格24. 淡仓","Public strBox24_short As String",75,"strBox24_short=.Range(\"B75\")"]
["strBox25","方格25.","Public strBox25 As String",76,"strBox25=.Range(\"B76\")"]
["strBox25_name","方格25. 其他方的姓名或名称","Public strBox25_name As String",77,"strBox25_name=.Range(\"B77\")"]
["strBox25_address","方格25.  地址 :","Public strBox25_address As String",78,"strBox25_address=.Range(\"B78\")"]
["strBox25_shares","方格25. 股份数目","Public strBox25_shares As String",79,"strBox25_shares=.Range(\"B79\")"]
["strBox25_total","方格25. 根据第317及318条，大股东持有权益的股份总数 :","Public strBox25_total As String",80,"strBox25_total=.Range(\"B80\")"]
["strBox26","方格26.","Public strBox26 As String",81,"strBox26=.Range(\"B81\")"]
["strBox26_name","方格26. 姓名","Public strBox26_name As String",82,"strBox26_name=.Range(\"B82\")"]
["strBox26_address","方格26. 地址","Public strBox26_address As String",83,"strBox26_address=.Range(\"B83\")"]
["strBox26_code","方格26. 关系代号","Public strBox26_code As String",84,"strBox26_code=.Range(\"B84\")"]
["strBox26_perentage","方格26. 百分率(%)","Public strBox26_perentage As String",85,"strBox26_perentage=.Range(\"B85\")"]
["strBox27","方格27. 补充资料","Public strBox27 As String",86,"strBox27=.Range(\"B86\")"]
["strBox28","方格28. 插入过往的表格的编号／序号","Public strBox28 As String",87,"strBox28=.Range(\"B87\")"]
["strBox29","方格29. :","Public strBox29 As String",88,"strBox29=.Range(\"B88\")"]

{"sheet":"Variables","index":4,"n_rows":87,"n_cols":4,"rows_kept":87,"cut":false,"hidden":true,"merged":[]}
["strEnd",null,null,"方格1: "]
["strVersion","你使用的表格为旧版本。请在此系统下载新版本表格",null,"方格2: "]
["strConfirmSave1","表格内有以下错误:",null,"方格3: "]
["strConfirmSave2","要继续储存？",null,"方格4: "]
["strNotReadySubmit","表格内有以下错误，请在呈交之前作出修正",null,"方格5: "]
["strNoCorpName","方格3：输入的股份代号未有相应的上市法团名称",null,"方格6: "]
["strNotHigher","“平均价（每股）”不能高于“最高价（每股）“",null,"方格7: "]
["strEndDate","结束日期不能早于开始日期",null,"方格8: "]
["strEvtLongOrShort","请输入或从列表中选择好仓或淡仓或两者的有关事件代号",null,"方格9: "]
["strFutureDate","日期不能后于今天",null,"方格10: "]
["strNoServer","暂时无法连接到伺服器。您仍可以离线模式继续填写本表格",null,"方格11 - 注册成立地点 : "]
["strInvalidEmail","请输入有效的电邮地址",null,"方格11 - 注册证明书号码: "]
["strInvalidTel","电话号码只可包括数字及 \"(\",\")\", \"+\" , \"-\" , \";\"符号。不接受空格或其他字元",null,"方格12: "]
["strInvalidDate","请以DD/MM/YYYY格式输入日期",null,"方格13: "]
["strMaxDec","请输入正数(最多包含{1}位整数和{2}位小数)",null,"方格14: "]
["strMaxDigit","请输入正数（最多{1}位整数）",null,"方格15: "]
["strNoValue","此格没有输入。请填写此格",null,"方格16: "]
["strDeleteWarn","注意：你现正删除表中的行。确认删除？",null,"方格17: "]
["strLastRow","此格必须保留最少一行",null,"方格17 - 好仓 - 有关事件的简述 : "]
["strCurrentRow","请完成目前行",null,"方格17 - 淡仓 - 有关事件的简述 : "]
["strMaxChar","请输入最多{1}个字元。不接受特殊字元",null,"方格17 - 好仓 - 有关事件之前 : "]
["strNoCodeMatch","您所输入的代号无效",null,"方格17 - 淡仓 - 有关事件之前 : "]
["strNoChinese","只可输入英文及数字",null,"方格17 - 好仓 - 有关事件之后 : "]
["strNoCurOrPrice","请同时输入货币和价格",null,"方格17 - 淡仓 - 有关事件之后 : "]
["strNoCurrency","请选择交易的货币",null,"方格17 - 好仓 - 买／卖或涉及的股份数目 : "]
["strNoReturn","表格中载有无效数据。请注意，此方格不接受输入Tab键或Enter/Return键",null,"方格17 - 淡仓 - 买／卖或涉及的股份数目 : "]
["strMsgboxTitle","无效输入",null,"方格17 - 最高价(每股) : "]
["strWarnTitle","警告",null,"方格17 - 平均价(每股) : "]
["strSystemMsg","系统消息",null,"方格17 - 平均代价(每股) : "]
["strReminder","提示",null,"方格17 - 代价的性质 : "]
["strPopUpWindowTitle","菜单",null,"方格17 - 好仓 : "]
["strSelectCode","请从列表中选择代号",null,"方格17 - 淡仓 : "]
["strSelectLevel3","请选择第3层",null,"方格18: "]
["strSelectLevel2","请选择第2层",null,"方格18 - 好仓 - 股份总数 : "]
["strSelectLevel1","请选择第1层",null,"方格18 - 好仓 - 百分率数字(%) : "]
["strNoLater","日期不能早于方格１（有关事件日期）的日期",null,"方格18 - 淡仓 - 股份总数 : "]
["strCheckbox","因你已勾选方格28，请必须于方格27提供更多资料",null,"方格18 - 淡仓 - 百分率数字(%) : "]
["strNoValueBox317","因你已填写方格25，请必须于方格27提供更多资料",null,"方格18 - 可供借出的股份 - 股份总数 : "]
["strNoValue1701","此格没有输入。请填写此格",null,"方格18 - 可供借出的股份 - 百分率数字(%) : "]
["strClassofShare","因你于方格5选择了“其他＂，请必须于方格27提供更多资料",null,"方格19: "]
["str4104and4108","因你在方格21中选择了4104或4108，请必须于方格27提供更多资料",null,"方格19 - 好仓 - 股份总数 : "]
["strEventCode","因你在方格17中选择了1013,1113,1213,1316,1403,1503,1702,1704,1710或1711，请必须于方格27提供更多资料",null,"方格19 - 好仓 - 百分率数字(%) : "]
["strCapCode","因你在方格17或方格20中选择了2501，请必须于方格27提供更多资料",null,"方格19 - 淡仓 - 股份总数 : "]
["strOthersInCurrency","因你于方格17中选择了“其他＂，请必须于方格27提供更多资料",null,"方格19 - 淡仓 - 百分率数字(%) : "]
["strLogNumber","输入的编号/序号无效。请更正",null,"方格19 - 可供借出的股份 - 股份总数 : "]
[null,null,null,"方格19 - 可供借出的股份 - 百分率数字(%) : "]
[null,null,null,"方格20 (第 {0} 行) : "]
[null,null,null,"方格20 - 切合身分的代号 (第 {0} 行) : "]
[null,null,null,"方格20 - 好仓 (第 {0} 行) : "]
[null,null,null,"方格20 - 淡仓 (第 {0} 行) : "]
[null,null,null,"方格21 (第 {0} 行) : "]
[null,null,null,"方格21 - 衍生工具的代号 (第 {0} 行) : "]
[null,null,null,"方格21 - 好仓 (第 {0} 行) : "]
[null,null,null,"方格21 - 淡仓 (第 {0} 行) : "]
[null,null,null,"方格22 (第 {0} 行) : "]
[null,null,null,"方格22 - 受控法团的名称 (第 {0} 行) : "]
[null,null,null,"方格22 - 地址及注册成立地点 (第 {0} 行) : "]
[null,null,null,"方格22 - 控权人士的姓名或名称 (第 {0} 行) : "]
[null,null,null,"方格22 - 控制百分率% (第 {0} 行) : "]
[null,null,null,"方格22 - 直接权益(Y/N) (第 {0} 行) : "]
[null,null,null,"方格22 - 好仓 (第 {0} 行) : "]
[null,null,null,"方格22 - 淡仓 (第 {0} 行) : "]
[null,null,null,"方格23 (第 {0} 行) : "]
[null,null,null,"方格23 - 联名股东的姓名或名称 (第 {0} 行) : "]
[null,null,null,"方格23 - 地址 (第 {0} 行) : "]
[null,null,null,"方格23 - 好仓 (第 {0} 行) : "]
[null,null,null,"方格23 - 淡仓 (第 {0} 行) : "]
[null,null,null,"方格24 (第 {0} 行) : "]
[null,null,null,"方格24 - 信托的名称 (第 {0} 行) : "]
[null,null,null,"方格24 - 地址 (第 {0} 行) : "]
[null,null,null,"方格24 - 与信托有关的身分代号 (第 {0} 行) : "]
[null,null,null,"方格24 - 好仓 (第 {0} 行) : "]
[null,null,null,"方格24 - 淡仓 (第 {0} 行) : "]
[null,null,null,"方格25 (第 {0} 行) : "]
[null,null,null,"方格25 - 其他方的姓名或名称"]
[null,null,null,"方格25 -  地址  (第 {0} 行) : "]
[null,null,null,"方格25 - 股份数目"]
[null,null,null,"方格25 - 根据第317及318条，大股东持有权益的股份总数 : "]
[null,null,null,"方格26 (第 {0} 行) : "]
[null,null,null,"方格26 - 姓名 (第 {0} 行) : "]
[null,null,null,"方格26 - 地址 (第 {0} 行) : "]
[null,null,null,"方格26 - 关系代号 (第 {0} 行) : "]
[null,null,null,"方格26 - 百分率(%) (第 {0} 行) : "]
[null,null,null,"方格27: "]
[null,null,null,"方格28: "]
[null,null,null,"方格29: "]
[null,null,null,"方格17 -交易的货币 : "]

{"sheet":"Supplementary(Box27)","index":5,"n_rows":10,"n_cols":2,"rows_kept":10,"cut":false,"hidden":true,"merged":[]}
[1013,"2501 "]
[1113]
[1213]
[1316]
[1403]
[1503]
[1702]
[1704]
[1710]
[1711]

{"sheet":"Version","index":6,"n_rows":4,"n_cols":1,"rows_kept":4,"cut":false,"hidden":true,"merged":[]}
["1.1.2"]
["form2"]
["SC"]
["CS"]

{"sheet":"Consideration(Box17)","index":7,"n_rows":4,"n_cols":2,"rows_kept":4,"cut":false,"hidden":true,"merged":[]}
[3101,"现金"]
[3102,"现金以外的资产"]
[3103,"交还股份／债权证的权利"]
[3104,"服务"]

{"sheet":"level1(Box17)","index":8,"n_rows":8,"n_cols":2,"rows_kept":8,"cut":false,"hidden":true,"merged":[]}
[100,"你首次取得须具报权益，原因是："]
[110,"你的股份权益的百分率水平有所上升，原因是："]
[120,"你的股份权益的百分率水平有所下降，原因是："]
[130,"你的股份权益的性质有所改变，原因是："]
[140,"你变为持有1%或以上的股份的淡仓，或你于有关股份的淡仓的百分率水平有所上升，原因是："]
[150,"你不再持有1%或以上的股份的淡仓，或你于有关股份的淡仓的百分率水平有所下降，原因是："]
[160,"核准借出代理人"]
[170,"杂项"]

{"sheet":"level2(Box17)","index":9,"n_rows":65,"n_cols":3,"rows_kept":65,"cut":false,"hidden":true,"merged":[]}
[1001,"你买入了股份",100]
[1002,"你获给予股份",100]
[1003,"你成为股本衍生工具的持有人，或沽出或发行股本衍生工具，并因而具有以下的权利或责任（选择一项）：",100]
[1004,"你取得了股份的保证权益 ",100]
[1005,"你继承了股份 ",100]
[1006,"你成为了持有股份权益的信托的受益人",100]
[1007,"你采取了步骤以执行你作为合资格借出人以保证方式持有的股份的权利",100]
[1009,"你就互相交换涉及相同的相关股份的文书，订立协议",100]
[1010,"你根据先旧后新配售，以承配人身分获配售股份",100]
[1011,"你根据先旧后新配售向承配人配售股份因而减少你的股份权益后，获发行新股份 ",100]
[1012,"你成为某个一致行动集团成员，或该一致行动集团某个成员取得了更多股份 ",100]
[1013,"任何其他事件（你必须在补充资料方格简述有关事件）",100]
[1101,"你买入了股份",110]
[1102,"你获给予股份",110]
[1103,"你成为股本衍生工具的持有人，或沽出或发行股本衍生工具，并因而具有以下的权利或责任（选择一项）：",110]
[1104,"你取得了股份的保证权益 ",110]
[1105,"你继承了股份 ",110]
[1106,"你成为了持有股份权益的信托的受益人",110]
[1107,"你采取了步骤以执行你作为合资格借出人以保证方式持有的股份的权利",110]
[1109,"你就互相交换涉及相同的相关股份的文书，订立协议",110]
[1110,"你根据先旧后新配售，以承配人身分获配售股份",110]
[1111,"你根据先旧后新配售向承配人配售股份因而减少你的股份权益后，获发行新股份 ",110]
[1112,"你成为某个一致行动集团成员，或该一致行动集团某个成员取得了更多股份 ",110]
[1113,"任何其他事件（你必须在补充资料方格简述有关事件）",110]
[1201,"你完成出售股份",120]
[1202,"你将股份馈赠他人",120]
[1203,"你交付了根据股本衍生工具须交付的股份或款项",120]
[1204,"令你具有以下权利或责任的股本衍生工具未有行使便已到期或被注销（选择一项）：",120]
[1205,"你不再持有股份的保证权益 ",120]
[1206,"你没有接纳或已出售供股的权利",120]
[1208,"你就互相交换涉及相同的相关股份的文书，订立协议",120]
[1209,"你根据先旧后新配售向承配人配售股份 ",120]
[1210,"在先旧后新配售中发行了新股份 ",120]
[1211,"你不再是某个一致行动集团成员，或该一致行动集团某个成员处置了部分股份",120]
[1213,"任何其他事件（你必须在补充资料方格简述有关事件）",120]
[1301,"股份已交付给你，及你先前并无就购入有关股份作出具报",130]
[1302,"你已就出售你持有权益的股份订立协议，但无须在4个交易日内交付有关股份",130]
[1303,"你已行使股本衍生工具下的股份的权利",130]
[1304,"在股本衍生工具下的股份的权利已针对你而行使",130]
[1305,"你已向合资格借出人以外的人提供股份权益作为保证",130]
[1306,"你向合资格借出人以外的人提供作为保证的股份权益已获解除",130]
[1307,"你已采取步骤以执行股份的保证权益或持有作为保证的有关股份的权利，及你不是合资格借出人",130]
[1308,"有关方面已采取步骤以针对你执行股份的保证权益或持有作为保证的股份的权利",130]
[1309,"你是遗嘱的受益人，及遗嘱执行人已将股份转移给你",130]
[1310,"你是信托的受益人，及受托人已将股份转移给你",130]
[1311,"你已向同意借入股份的人交付股份",130]
[1312,"你借出的股份已交还给你",130]
[1313,"你已根据证券借贷协议借出股份",130]
[1314,"你已收回某证券借贷协议下的股份",130]
[1315,"你已就你继续持有的股份作出信托声明",130]
[1316,"任何其他事件（你必须在补充资料方格简述有关事件）",130]
[1401,"你成为股本衍生工具的持有人，或沽出或发行股本衍生工具，并因而具有以下的权利或责任（选择一项）：",140]
[1402,"你已根据证券借贷协议借入股份",140]
[1403,"任何其他事件（你必须在补充资料方格简述有关事件）",140]
[1501,"令你具有以下权利或责任的股本衍生工具未有行使便已到期或被注销（选择一项）：",150]
[1502,"你已交还某证券借贷协议下的股份",150]
[1503,"任何其他事件（你必须在补充资料方格简述有关事件）",150]
[1601,"核准借出代理人根据《证券及期货(权益披露 – 证券借贷)规则》第5(4)条作出通知（选择一项）：",160]
[1602,"控制核准借出代理人的人根据《证券及期货(权益披露 – 证券借贷)规则》第5(4)条作出通知（选择一项）：",160]
[1701,"有关法团上市，或该上市法团某类股份上市",170]
[1702,"为移除旧资料而将通知送交存档（如你选择此代号，你必须在补充资料方格注明旧资料及指明载有新资料的方格） ",170]
[1703,"因披露界线改变而将通知送交存档",170]
[1704,"因你不再持有上市法团股份的须具报权益而将通知送交存档（你必须在补充资料方格简述有关事件）",170]
[1710,"自愿披露（你必须在补充资料方格简述有关事件）",170]
[1711,"其他（你必须在补充资料方格简述有关事件）",170]

{"sheet":"level3(Box17)","index":10,"n_rows":29,"n_cols":3,"rows_kept":29,"cut":false,"hidden":true,"merged":[]}
[10031,"你有权购入相关股份",1003]
[10032,"你有责任购入相关股份",1003]
[10033,"如相关股份价格高于某个水平，你有权向另一人收取款项",1003]
[10034,"如相关股份价格低于某个水平，你有责任向另一人支付款项",1003]
[10035,"你具有上文10031至10034所提述的包含于合约或文书内的任何权利或责任",1003]
[11031,"你有权购入相关股份",1103]
[11032,"你有责任购入相关股份",1103]
[11033,"如相关股份价格高于某个水平，你有权向另一人收取款项",1103]
[11034,"如相关股份价格低于某个水平，你有责任向另一人支付款项",1103]
[11035,"你具有上文11031至11034所提述的包含于合约或文书内的任何权利或责任",1103]
[12041,"你有权购入相关股份",1204]
[12042,"你有责任购入相关股份",1204]
[12043,"如相关股份价格高于某个水平，你有权向另一人收取款项",1204]
[12044,"如相关股份价格低于某个水平，你有责任向另一人支付款项",1204]
[12045,"你具有上文12041至12044所提述的包含于合约或文书内的任何权利或责任",1204]
[14011,"你有权要求另一人提取相关股份 ",1401]
[14012,"你有责任交付相关股份",1401]
[14013,"如相关股份价格低于某个水平，你有权向另一人收取款项",1401]
[14014,"如相关股份价格高于某个水平，你有责任向另一人支付款项",1401]
[14015,"你具有上文14011至14014所提述的包含于合约或文书内的任何权利或责任",1401]
[15011,"你有权要求另一人提取相关股份 ",1501]
[15012,"你有责任交付相关股份",1501]
[15013,"如相关股份价格低于某个水平，你有权向另一人收取款项",1501]
[15014,"如相关股份价格高于某个水平，你有责任向另一人支付款项",1501]
[15015,"你具有上文15011至15014所提述的包含于合约或文书内的任何权利或责任",1501]
[16011,"你于自己可供借出的股份中持有的股份权益的百分率水平被视为有所上升",1601]
[16012,"你于自己可供借出的股份中持有的股份权益的百分率水平被视为有所下降",1601]
[16021,"你于核准借出代理人的可供借出的股份中持有的股份权益的百分率水平被视为有所上升",1602]
[16022,"你于核准借出代理人的可供借出的股份中持有的股份权益的百分率水平被视为有所下降",1602]

{"sheet":"Capacity(Box17_20)","index":11,"n_rows":18,"n_cols":2,"rows_kept":18,"cut":false,"hidden":true,"merged":[]}
[2101,"实益拥有人"]
[2102,"投资经理"]
[2103,"与另一人共同持有权益"]
[2104,"代理人"]
[2105,"包销商"]
[2106,"持有股份的保证权益的人"]
[2201,"你所控制的法团的权益"]
[2301,"受托人"]
[2302,"保管人（获豁免保管人权益除外）"]
[2303,"存放人"]
[2304,"遗嘱执行人或遗产管理人"]
[2305,"信托受益人（酌情权益除外）"]
[2306,"另一人的代名人（被动受托人除外）"]
[2307,"可影响受托人如何行使其酌情权的酌情信托成立人"]
[2401,"属第317(1)(a)条所述的买入股份协议一方的一致行动人士"]
[2402,"属第317(1)(b)条所述的作出贷款或提供保证以买入股份的人"]
[2501,"其他（你必须在补充资料方格简述有关身分）"]
[2502,"核准借出代理人"]

{"sheet":"Derivatives(Box21)","index":12,"n_rows":8,"n_cols":2,"rows_kept":8,"cut":false,"hidden":true,"merged":[]}
[4101,"上市衍生工具 - 以实物交收"]
[4102,"上市衍生工具 - 以现金交收"]
[4103,"上市衍生工具 - 可转换文书"]
[4104,"上市衍生工具 - 其他（你必须在补充资料方格描述衍生工具类别）"]
[4105,"非上市衍生工具 - 以实物交收"]
[4106,"非上市衍生工具 - 以现金交收"]
[4107,"非上市衍生工具 - 可转换文书"]
[4108,"非上市衍生工具 - 其他（你必须在补充资料方格简述衍生工具类别）"]

{"sheet":"Status(Box24)","index":13,"n_rows":3,"n_cols":2,"rows_kept":3,"cut":false,"hidden":true,"merged":[]}
[5101,"信托的受托人"]
[5102,"信托受益人（酌情权益除外）"]
[5103,"可影响受托人如何行使其酌情权的酌情信托成立人"]

{"sheet":"Relationship(Box26)","index":14,"n_rows":6,"n_cols":2,"rows_kept":6,"cut":false,"hidden":true,"merged":[]}
[6101,"控制人是你的直属控股公司"]
[6102,"控制人是你的中介控股公司"]
[6103,"控制人是你的最终控股公司"]
[6104,"控制人是董事"]
[6105,"控制人是幕后董事"]
[6106,"其他"]